Workbook

Sheet Loan Calculator
B2: Auto Loan vs. Home Equity Loan Calculator
M3: =IFERROR(IF(AutoTotalInterest<(EquityTotalInterest-IncomeTaxSavings),"An auto loan could save you about "&TEXT(EquityCostofLoan-AutoCostofLoan+ClosingCosts,"$#,##0")&" over the term of your loan. This is after we included a potential tax savings of "&TEXT(IncomeTaxSavings,"$#,##0")&".","A home equity loan could save you about "&TEXT(AutoCostofLoan-EquityCostofLoan-ClosingCosts,"$#,##0")&" over the term of your loan. This includes a potential tax savings of "&TEXT(IncomeTaxSavings,"$#,##0")&"."),"") -> A home equity loan could save you about $,370 over the term of your loan. This includes a potential tax savings of $1,408.
C7: General Loan Information | H7: Auto Loan Information | M7: Home Equity Loan Information
C8: Purchase price (before tax) | D8: 45000 | H8: Interest rate | I8: 0.055 | M8: Interest Rate | N8: 0.045
C9: Cash down | D9: 2000 | M9: Closing costs | N9: 2000
C10: Trade allowance | D10: 15000 | H10: Auto Loan Details | M10: Your federal income tax rate | N10: 0.17
C11: Amount owed on trade-in | D11: 13000 | M11: Your state income tax rate | N11: 0.09
C12: Term in months | D12: 60 | H12: Monthly payment | I12: =IFERROR(ROUND(PMT(LoanInterestRate/12,Term,-AutoLoanAmount),2),"") -> 833.86 | M12: Home Equity Loan Details
C13: Sales tax rate | D13: 0.0875 | H13: ="Total interest ("&TEXT(LoanInterestRate,"0.00%")&")" -> Total interest (5.50%) | I13: =IFERROR((AutoMonthlyPayment*Term)-AutoLoanAmount,"") -> 6376.6
C14: Fees | D14: 30 | H14: Potential Income tax savings | I14: 0 | M14: Monthly payment | N14: =IFERROR(ROUND(PMT(EquityInterestRate/12,Term,-EquityLoanAmount),2),"") -> 851.15
C15: Does your state deduct your trade-in value before calculating sales tax? | D15: Yes | H15: Loan total | I15: =IFERROR((AutoMonthlyPayment*Term),"") -> 50031.6 | M15: ="Total Loan interest ("&TEXT(EquityInterestRate,"0.00%")&")" -> Total Loan interest (4.50%) | N15: =IFERROR((EquityMonthlyPayment*Term)-EquityLoanAmount,"") -> 5414
H16: Cost of loan | I16: =AutoTotalInterest -> 6376.6 | M16: Potential Income tax savings | N16: =IFERROR(EquityTotalInterest*(FederalTaxRate+StateTaxRate),"") -> 1407.64
C17: General Loan Details | H17: Cost of Loan | M17: Loan total | N17: =IFERROR((EquityMonthlyPayment*Term),"") -> 51069
M18: Cost of loan (includes tax savings) | N18: =IFERROR(EquityTotalInterest-IncomeTaxSavings,"") -> 4006.36
C19: Purchase Amount | D19: =PurchasePrice -> 45000 | H19: =AutoCostofLoan -> 6376.6 | M19: Cost of Loan
C20: Sales Tax | D20: =IF(SalesTaxDeduciton="Yes",(PurchasePrice-TradeIn)*SalesTaxRate,AutoPurchaseAmount*SalesTaxRate) -> 2625
C21: =IF(AND(SalesTaxDeduciton="Yes",SalesTaxAmount>0),"Sales tax based on "&TEXT((PurchasePrice-TradeIn),"$#,##0.00")&" (sales tax deduction for trade-in allowance)","") -> Sales tax based on $30,000.00 (sales tax deduction for trade-in allowance) | M21: =EquityCostofLoan -> 4006.36
C23: Total down payment | D23: =CashDown+(TradeIn-TradeInOwed) -> 4000
C24: =IF(TradeIn>0,"Total down payment calculation includes "&IF(TradeInOwed>0,TEXT(TradeIn-TradeInOwed,"$#,##0.00")&" ("&TEXT(TradeIn,"$#,##0.00")&" trade-in amount minus "&TEXT(TradeInOwed,"$#,##0.00")&" outstanding loan balance)",TEXT(TradeIn,"$#,##0.00")&" trade-in amount")&IF(CashDown>0," plus "&TEXT(CashDown,"$#,##0.00")&" cash down",""),IF(CashDown>0,"Down payment calculation includes " & TEXT(CashDown,"$#,##0.00") & " cash down","")) -> Total down payment calculation includes $2,000.00 ($15,000.00 trade-in amount minus $13,000.00 outstanding loan balance) plus $2,000.00 cash down
C27: Auto loan amount | D27: =(AutoPurchaseAmount+SalesTaxAmount+LoanFees)-CashDown-(TradeIn-TradeInOwed) -> 43655
C28: =IF(LoanFees>0,"Includes " &TEXT(LoanFees,"$#,##0.00") & " for fees","") -> Includes $30.00 for fees
C29: Home equity loan amount | D29: =(AutoPurchaseAmount+SalesTaxAmount+LoanFees+ClosingCosts)-CashDown-(TradeIn-TradeInOwed) -> 45655
C30: =IF(ClosingCosts>0,"Includes " &TEXT(LoanFees+ClosingCosts,"$#,##0.00") & " for fees and closing costs","") -> Includes $2,030.00 for fees and closing costs
